fUSD/lending_fUSD_20240629
["ID","MTS","AMOUNT","RATE_DAILY","PERIOD"]
[330657814,1719694256181,-500.0,0.00013808,3]
[330657815,1719694256190,-533.56,0.00013808,3]
[330657816,1719694256200,-597.38,0.00013808,3]
[330657817,1719694256210,-500.0,0.00013808,3]
[330657818,1719694256220,-599.17,0.00013808,3]
[330657819,1719694256230,-1643.2,0.00013808,3]
[330657820,1719694256239,-6369.69,0.00013808,3]
[330657821,1719694256249,-1738.24,0.00013808,3]
[330657822,1719694256261,-500.0,0.00013808,3]
[330657823,1719694256271,-500.0,0.00013808,3]
[330657824,1719694256282,-500.0,0.00013808,3]
[330657825,1719694256293,-500.0,0.00013808,3]
[330657826,1719694256303,-500.0,0.00013808,3]
[330657827,1719694256312,-1759.93,0.00013808,3]
[330657828,1719694256321,-1041.09,0.00013808,3]
[330657829,1719694256331,-4890.59,0.00013808,3]
[330657830,1719694256340,-1959.85,0.00013808,3]
[330657831,1719694256349,-500.0,0.00013808,3]
[330657832,1719694256359,-3825.41,0.00013808,3]
[330657833,1719694256368,-1303.71,0.00013808,3]
[330657834,1719694256377,-500.0,0.00013808,3]
[330657835,1719694256387,-585.61,0.00013808,3]
[330657836,1719694256396,-500.0,0.00013808,3]
[330657837,1719694256406,-500.0,0.00013808,3]
[330657838,1719694256416,-610.01,0.00013808,3]
[330657839,1719694256426,-960.65,0.00013808,3]
[330657840,1719694256435,-500.0,0.00013808,3]
[330657841,1719694256445,-1131.01,0.00013808,3]
[330657842,1719694256454,-500.0,0.00013808,3]
[330657843,1719694256463,-500.0,0.00013808,3]
[330657844,1719694256472,-660.2,0.00013808,3]
[330657845,1719694256482,-500.0,0.00013808,3]
[330657846,1719694256491,-670.35,0.00013808,3]
[330657847,1719694256501,-500.0,0.00013808,3]
[330657848,1719694256510,-500.0,0.00013808,3]
[330657849,1719694256519,-1080.0,0.00013808,3]
[330657850,1719694256528,-10370.27,0.00013808,3]
[330657851,1719694256538,-500.0,0.00013808,3]
[330657852,1719694256549,-500.0,0.00013808,3]
[330657853,1719694256559,-6423.79,0.00013808,3]
[330657854,1719694256568,-512.01686106,0.00013808,3]
[330657855,1719694256578,-1948.11,0.00013808,3]
[330657856,1719694256588,-1370.17,0.00013808,3]
[330657857,1719694256598,-775.77,0.00013808,3]
[330657858,1719694256607,-500.0,0.00013808,3]
[330657859,1719694256616,-500.0,0.00013808,3]
[330657860,1719694256626,-500.0,0.00013808,3]
[330657861,1719694256635,-500.0,0.00013808,3]
[330657862,1719694256645,-910.94,0.00013808,3]
[330657863,1719694256654,-500.0,0.00013808,3]
[330657864,1719694256664,-500.0,0.00013808,3]
[330657865,1719694256673,-1469.16,0.00013808,3]
[330657866,1719694256683,-1203.37,0.00013808,3]
[330657867,1719694256692,-500.0,0.00013808,3]
[330657868,1719694256702,-500.0,0.00013808,3]
[330657869,1719694256712,-933.07,0.00013808,3]
[330657870,1719694256721,-263.45657008,0.00013808,3]
[330657871,1719694256731,-1910.93,0.00013808,3]
[330657872,1719694256740,-1777.8,0.00013808,3]
[330657873,1719694256750,-1731.4,0.00013808,3]
[330657874,1719694256759,-500.0,0.00013808,3]
[330657875,1719694256769,-500.0,0.00013808,3]
[330657876,1719694256779,-775.86,0.00013808,3]
[330657877,1719694256788,-500.0,0.00013808,3]
[330657878,1719694256798,-500.0,0.00013808,3]
[330657879,1719694256808,-827.24,0.00013808,3]
[330657880,1719694256818,-2660.52,0.00013808,3]
[330657881,1719694256828,-689.86,0.00013808,3]
[330657882,1719694256837,-500.0,0.00013808,3]
[330657883,1719694256847,-990.74,0.00013808,3]
[330657884,1719694256856,-2500.0,0.00013808,3]
[330657885,1719694256866,-1841.11,0.00013808,3]
[330657886,1719694256875,-500.0,0.00013808,3]
[330657887,1719694256885,-651.51,0.00013808,3]
[330657888,1719694256894,-2773.97,0.00013808,3]
[330657889,1719694256905,-500.0,0.00013808,3]
[330657890,1719694256915,-2056.69,0.00013808,3]
[330657891,1719694256925,-1253.79,0.00013808,3]
[330657892,1719694256935,-2485.96,0.00013808,3]
[330657893,1719694256944,-1463.39,0.00013808,3]
[330657894,1719694256954,-500.0,0.00013808,3]
[330657895,1719694256964,-1033.86,0.00013808,3]
[330657896,1719694256973,-1626.55,0.00013808,3]
[330657897,1719694256983,-500.0,0.00013808,3]
[330657898,1719694256992,-3242.79,0.00013808,3]
[330657899,1719694257001,-1936.66,0.00013808,3]
[330657900,1719694257011,-6921.77,0.00013808,3]
[330657901,1719694257021,-500.0,0.00013808,3]
[330657902,1719694257030,-500.0,0.00013808,3]
[330657903,1719694257040,-1221.17,0.00013808,3]
[330657904,1719694257049,-500.0,0.00013808,3]
[330657905,1719694257059,-783.62,0.00013808,3]
[330657906,1719694257068,-500.0,0.00013808,3]
[330657907,1719694257077,-1400.26,0.00013808,3]
[330657908,1719694257087,-500.0,0.00013808,3]
[330657909,1719694257096,-941.31,0.00013808,3]
[330657910,1719694257105,-823.09,0.00013808,3]
[330657911,1719694257119,-1047.1,0.00013808,3]
[330657912,1719694257128,-876.04,0.00013808,3]
[330657913,1719694257139,-500.0,0.00013808,3]
[330657914,1719694257149,-3491.86,0.00013808,3]
[330657915,1719694257159,-849.65,0.00013808,3]
[330657916,1719694257169,-169.91770788,0.00013808,3]
[330657917,1719694257179,-2896.75,0.00013808,3]
[330657918,1719694257189,-1314.36,0.00013808,3]
[330657919,1719694257203,-500.0,0.00013808,3]
[330657920,1719694257214,-500.0,0.00013808,3]
[330657921,1719694257224,-4556.57,0.00013808,3]
[330657922,1719694257234,-1369.88,0.00013808,3]
[330657923,1719694257243,-500.0,0.00013808,3]
[330657924,1719694257253,-1507.85,0.00013808,3]
[330657925,1719694257263,-684.86,0.00013808,3]
[330657926,1719694257272,-1001.44,0.00013808,3]
[330657927,1719694257282,-500.0,0.00013808,3]
[330657928,1719694257292,-500.0,0.00013808,3]
[330657929,1719694257301,-500.0,0.00013808,3]
[330657930,1719694257311,-500.0,0.00013808,3]
[330657931,1719694257320,-585.77,0.00013808,3]
[330657932,1719694257330,-4820.44,0.00013808,3]
[330657933,1719694257339,-500.0,0.00013808,3]
[330657934,1719694257349,-1277.49,0.00013808,3]
[330657935,1719694257359,-1022.34,0.00013808,3]
[330657936,1719694257369,-3055.71,0.00013808,3]
[330657937,1719694257378,-500.0,0.00013808,3]
[330657938,1719694257389,-2012.42,0.00013808,3]
[330657939,1719694257398,-500.0,0.00013808,3]
[330657940,1719694257409,-500.0,0.00013808,3]
[330657941,1719694257418,-500.0,0.00013808,3]
[330657942,1719694257428,-500.0,0.00013808,3]
[330657943,1719694257437,-500.0,0.00013808,3]
[330657944,1719694257447,-500.0,0.00013808,3]
[330657945,1719694257456,-500.0,0.00013808,3]
[330657946,1719694257466,-1739.15,0.00013808,3]
[330657947,1719694257476,-1557.31,0.00013808,3]
[330657948,1719694257485,-874.37,0.00013808,3]
[330657949,1719694257495,-500.0,0.00013808,3]
[330657950,1719694257504,-943.86,0.00013808,3]
[330657951,1719694257514,-500.0,0.00013808,3]
[330657952,1719694257524,-500.0,0.00013808,3]
[330657953,1719694257533,-1363.13,0.00013808,3]
[330657954,1719694257543,-500.0,0.00013808,3]
[330657955,1719694257552,-1121.12,0.00013808,3]
[330657956,1719694257561,-1355.87,0.00013808,3]
[330657957,1719694257571,-939.63,0.00013808,3]
[330657958,1719694257580,-500.0,0.00013808,3]
[330657959,1719694257590,-500.0,0.00013808,3]
[330657960,1719694257599,-3923.16,0.00013808,3]
[330657961,1719694257608,-2435.81,0.00013808,3]
[330657962,1719694257617,-1402.7,0.00013808,3]
[330657963,1719694257626,-640.71,0.00013808,3]
[330657964,1719694257638,-500.0,0.00013808,3]
[330657965,1719694257647,-500.0,0.00013808,3]
[330657966,1719694257656,-2716.58,0.00013808,3]
[330657967,1719694257665,-500.0,0.00013808,3]
[330657968,1719694257674,-826.63,0.00013808,3]
[330657969,1719694257683,-500.0,0.00013808,3]
[330657970,1719694257692,-1596.21,0.00013808,3]
[330657971,1719694257702,-500.0,0.00013808,3]
[330657972,1719694257711,-1289.26,0.00013808,3]
[330657973,1719694257721,-500.0,0.00013808,3]
[330657974,1719694257730,-250.0,0.00013808,3]
[330657975,1719694257739,-540.21,0.00013808,3]
[330657976,1719694257749,-500.0,0.00013808,3]
[330657977,1719694257758,-500.0,0.00013808,3]
[330657978,1719694257767,-2462.65,0.00013808,3]
[330657979,1719694257777,-5718.57,0.00013808,3]
[330657980,1719694257786,-500.0,0.00013808,3]
[330657981,1719694257795,-500.0,0.00013808,3]
[330657982,1719694257804,-949.77,0.00013808,3]
[330657983,1719694257818,-1681.13,0.00013808,3]
[330657984,1719694257828,-500.0,0.00013808,3]
[330657985,1719694257838,-1013.15,0.00013808,3]
[330657986,1719694257848,-1127.42,0.00013808,3]
[330657987,1719694257858,-2298.19,0.00013808,3]
[330657988,1719694257869,-500.0,0.00013808,3]
[330657989,1719694257879,-684.67,0.00013808,3]
[330657990,1719694257892,-500.0,0.00013808,3]
[330657991,1719694257903,-500.0,0.00013808,3]
[330657992,1719694257917,-1398.4,0.00013808,3]
[330657993,1719694257927,-500.0,0.00013808,3]
[330657994,1719694257938,-5959.22,0.00013808,3]
[330657995,1719694257948,-500.0,0.00013808,3]
[330657996,1719694257959,-2162.31,0.00013808,3]
[330657997,1719694257968,-500.0,0.00013808,3]
[330657998,1719694257978,-4484.33,0.00013808,3]
[330657999,1719694257988,-500.0,0.00013808,3]
[330658000,1719694257998,-509.62,0.00013808,3]
[330658001,1719694258008,-3030.36,0.00013808,3]
[330658002,1719694258018,-500.0,0.00013808,3]
[330658003,1719694258027,-2358.57,0.00013808,3]
[330658004,1719694258037,-1794.79,0.00013808,3]
[330658005,1719694258047,-500.0,0.00013808,3]
[330658006,1719694258057,-1952.52,0.00013808,3]
[330658007,1719694258067,-3401.01,0.00013808,3]
[330658008,1719694258077,-784.33,0.00013808,3]
[330658009,1719694258087,-500.0,0.00013808,3]
[330658010,1719694258097,-1285.83,0.00013808,3]
[330658011,1719694258106,-500.0,0.00013808,3]
[330658012,1719694258119,-500.0,0.00013808,3]
[330658013,1719694258129,-1124.88,0.00013808,3]
[330658014,1719694258142,-148.92088865,0.00013808,3]
[330658015,1719694258806,-331.13787369,0.00013808,3]
[330658016,1719694312710,351.58,0.00010971,2]
[330658017,1719694360982,500.0,0.00026,120]
[330658020,1719694516763,3037.806753,0.00011098,2]
[330658021,1719694825524,482.87871356,0.00011098,2]
[330658022,1719694842448,392.24,0.00026,120]
[330658031,1719694900994,334.0,0.00010628,2]
[330658036,1719694993597,500.0,0.00025999,120]
[330658037,1719695025341,155.0,0.00011098,2]
[330658041,1719695067593,258.6924005,0.00011098,2]
[330658046,1719695102354,308.12292157,0.00011098,2]
[330658047,1719695111175,10000.0,0.00025999,120]
[330658052,1719695129337,155.0,0.00011098,2]
[330658055,1719695155414,155.22635001,0.00011098,2]
[330658061,1719695203120,-200.67331933,0.00012178,2]
[330658062,1719695203773,660.25476663,0.00011098,2]
[330658075,1719695310887,500.0,0.00026,120]
[330658076,1719695329848,689.73177959,0.00011098,2]
[330658080,1719695431850,-291.98506278,0.00011199,2]
[330658081,1719695431860,-157.08319768,0.00011199,2]
[330658082,1719695431869,-582.1150925,0.00012211,2]
[330658083,1719695431913,-270.03107511,0.00012211,2]
[330658084,1719695431925,-1054.71998718,0.00012211,2]
[330658085,1719695431937,-1198.83802121,0.00012211,2]
[330658086,1719695431946,-163.64202156,0.00012273,2]
[330658087,1719695431956,-303.74358298,0.00012302,2]
[330658088,1719695431965,-155.0,0.00012302,2]
[330658089,1719695431975,-281.16809237,0.00012302,2]
[330658090,1719695431984,-438.1115069,0.00012302,2]
[330658091,1719695431994,-217.84498894,0.00012302,2]
[330658092,1719695432003,-263.44413224,0.00012314,2]
[330658093,1719695432013,-196.22844649,0.00012314,2]
[330658094,1719695432022,-227.02046916,0.00012314,2]
[330658096,1719695432032,-242.09159978,0.00012314,2]
[330658097,1719695432042,-1000.0,0.0001239,2]
[330658098,1719695432051,-250.0,0.00012414,2]
[330658099,1719695432061,-446.94,0.00012438,2]
[330658100,1719695432070,-167.47,0.00012528,2]
[330658101,1719695432079,-250.0,0.00012547,2]
[330658102,1719695432089,-763.2,0.00012639,2]
[330658103,1719695432098,-8750.78,0.00012649,2]
[330658104,1719695432107,-177.0,0.00012867,2]
[330658105,1719695432118,-334.0,0.00012892,2]
[330658106,1719695432127,-169.54,0.00012978,2]
[330658107,1719695432137,-299.99,0.00013235,2]
[330658108,1719695432146,-300.0,0.000133,4]
[330658109,1719695432156,-700.0,0.000134,4]
[330658110,1719695432165,-500.0,0.00013498,2]
[330658111,1719695432174,-6607.20674809,0.00013498,2]
[330658112,1719695432186,-57260.75992548,0.00013498,2]
[330658113,1719695432198,-12365.07064724,0.00013498,2]
[330658118,1719695437668,-307.94365081,0.00012314,2]
[330658119,1719695437678,-1259.64034619,0.00013498,2]
[330658120,1719695437689,-10693.243933,0.00013498,2]
[330658121,1719695437699,-1000.0,0.000135,4]
[330658122,1719695437708,-150.0,0.00013555,2]
[330658123,1719695437718,-150.0,0.00013576,2]
[330658124,1719695437727,-150.0,0.00013582,2]
[330658125,1719695437737,-271.40579368,0.00013598,2]
[330658126,1719695437746,-327.18357985,0.00013598,2]
[330658127,1719695437755,-9000.0,0.00013598,2]
[330658128,1719695437766,-1000.0,0.00013598,2]
[330658129,1719695437775,-7500.0,0.00013598,2]
[330658130,1719695437785,-1400.0,0.000136,4]
[330658131,1719695437794,-448.0,0.00013614,2]
[330658132,1719695437804,-812.0,0.00013614,2]
[330658133,1719695437814,-767.924,0.00013614,2]
[330658134,1719695437824,-166.0,0.00013614,2]
[330658135,1719695437833,-150.0,0.00013614,2]
[330658136,1719695437843,-2414.0,0.00013614,2]
[330658137,1719695437853,-1304.0,0.00013614,2]
[330658138,1719695437862,-548.0,0.00013614,2]
[330658139,1719695437872,-2132.057,0.00013614,2]
[330658140,1719695437883,-3197.0,0.00013614,2]
[330658141,1719695437892,-150.0,0.0001363,2]
[330658142,1719695437902,-150.0,0.00013667,2]
[330658143,1719695437912,-150.0,0.00013669,2]
[330658144,1719695437921,-1176.97279,0.0001367,2]
[330658145,1719695437930,-500.0,0.00013683,2]
[330658146,1719695437940,-166.49751087,0.00013688,2]
[330658147,1719695437950,-2106.67,0.00013698,3]
[330658148,1719695437959,-925.38,0.00013698,3]
[330658149,1719695437969,-996.78,0.00013698,3]
[330658150,1719695437979,-2171.73,0.00013698,3]
[330658151,1719695437988,-3016.84,0.00013698,3]
[330658152,1719695437998,-6993.7,0.00013698,3]
[330658153,1719695438008,-3979.82,0.00013698,3]
[330658154,1719695438017,-1251.58,0.00013698,3]
[330658155,1719695438027,-5187.81,0.00013698,3]
[330658156,1719695438037,-500.0,0.00013698,3]
[330658157,1719695438046,-4545.37,0.00013698,3]
[330658158,1719695438056,-833.32,0.00013698,3]
[330658159,1719695438066,-500.0,0.00013698,3]
[330658160,1719695438076,-500.0,0.00013698,3]
[330658161,1719695438085,-500.0,0.00013698,3]
[330658162,1719695438095,-3716.41,0.00013698,3]
[330658163,1719695438105,-500.0,0.00013698,3]
[330658164,1719695438115,-1210.18,0.00013698,3]
[330658165,1719695438125,-593.77,0.00013698,3]
[330658166,1719695438135,-500.0,0.00013698,2]
[330658167,1719695438146,-500.0,0.00013698,2]
[330658168,1719695438156,-500.0,0.00013698,2]
[330658169,1719695438166,-500.0,0.00013698,2]
[330658170,1719695438175,-500.0,0.00013698,3]
[330658171,1719695438185,-557.64,0.00013698,3]
[330658172,1719695438195,-1036.66,0.00013698,3]
[330658173,1719695438204,-500.0,0.00013698,3]
[330658174,1719695438214,-664.71,0.00013698,3]
[330658175,1719695438223,-500.0,0.00013698,3]
[330658176,1719695438234,-500.0,0.00013698,3]
[330658177,1719695438243,-551.34,0.00013698,3]
[330658178,1719695438253,-577.62,0.00013698,3]
[330658179,1719695438263,-1281.46,0.00013698,3]
[330658180,1719695438272,-500.0,0.00013698,3]
[330658181,1719695438282,-500.0,0.00013698,3]
[330658182,1719695438291,-500.0,0.00013698,3]
[330658183,1719695438301,-2762.0,0.00013698,3]
[330658184,1719695438311,-1315.22,0.00013698,3]
[330658185,1719695438321,-500.0,0.00013698,3]
[330658186,1719695438330,-500.0,0.00013698,3]
[330658187,1719695438339,-734.19,0.00013698,3]
[330658188,1719695438349,-500.0,0.00013698,3]
[330658189,1719695438359,-500.0,0.00013698,3]
[330658190,1719695438369,-539.93,0.00013698,3]
[330658191,1719695438379,-945.01,0.00013698,3]
[330658192,1719695438389,-993.05,0.00013698,3]
[330658193,1719695438398,-687.15,0.00013698,3]
[330658194,1719695438407,-3188.54,0.00013698,3]
[330658195,1719695438417,-500.0,0.00013698,3]
[330658196,1719695438426,-500.0,0.00013698,3]
[330658197,1719695438436,-514.21,0.00013698,3]
[330658198,1719695438445,-500.0,0.00013698,3]
[330658199,1719695438455,-803.08,0.00013698,3]
[330658200,1719695438464,-771.87,0.00013698,3]
[330658201,1719695438474,-500.0,0.00013698,3]
[330658202,1719695438483,-500.0,0.00013698,3]
[330658203,1719695438492,-668.29,0.00013698,3]
[330658204,1719695438501,-500.0,0.00013698,3]
[330658205,1719695438512,-3766.52,0.00013698,3]
[330658206,1719695438522,-500.0,0.00013698,3]
[330658207,1719695438531,-500.0,0.00013698,3]
[330658208,1719695438541,-500.0,0.00013698,3]
[330658209,1719695438555,-1263.05,0.00013698,3]
[330658210,1719695438572,-500.0,0.00013698,3]
[330658211,1719695438582,-1142.84,0.00013698,3]
[330658212,1719695438591,-500.0,0.00013698,3]
[330658213,1719695438601,-1020.3,0.00013698,3]
[330658214,1719695438610,-902.13,0.00013698,3]
[330658215,1719695438620,-500.0,0.00013698,3]
[330658216,1719695438630,-804.16,0.00013698,3]
[330658217,1719695438639,-1063.17,0.00013698,3]
[330658218,1719695438649,-2021.58,0.00013698,3]
[330658219,1719695438658,-725.43,0.00013698,3]
[330658220,1719695438667,-1152.89,0.00013698,3]
[330658221,1719695438677,-500.0,0.00013698,3]
[330658222,1719695438686,-500.0,0.00013698,3]
[330658223,1719695438695,-500.0,0.00013698,3]
[330658224,1719695438704,-500.0,0.00013698,3]
[330658225,1719695438713,-500.0,0.00013698,3]
[330658226,1719695438722,-500.0,0.00013698,3]
[330658227,1719695438731,-500.0,0.00013698,3]
[330658228,1719695438740,-823.14,0.00013698,3]
[330658229,1719695438749,-45646.3,0.00013698,3]
[330658230,1719695438759,-500.0,0.00013698,3]
[330658231,1719695438768,-1142.54,0.00013698,3]
[330658232,1719695438778,-500.0,0.00013698,3]
[330658233,1719695438787,-500.0,0.00013698,3]
[330658234,1719695438796,-500.0,0.00013698,3]
[330658235,1719695438805,-500.0,0.00013698,3]
[330658236,1719695438814,-500.0,0.00013698,3]
[330658237,1719695438823,-1669.44,0.00013698,3]
[330658238,1719695438832,-973.81,0.00013698,3]
[330658239,1719695438841,-500.0,0.00013698,3]
[330658240,1719695438850,-500.0,0.00013698,3]
[330658241,1719695438860,-518.14,0.00013698,3]
[330658242,1719695438871,-6108.4,0.00013698,3]
[330658243,1719695438880,-809.64,0.00013698,3]
[330658244,1719695438890,-500.0,0.00013698,3]
[330658245,1719695438903,-500.0,0.00013698,3]
[330658246,1719695438912,-1118.25,0.00013698,3]
[330658247,1719695438922,-500.0,0.00013698,3]
[330658248,1719695438931,-500.0,0.00013698,3]
[330658249,1719695438939,-500.0,0.00013698,3]
[330658250,1719695438949,-500.0,0.00013698,3]
[330658251,1719695438958,-500.0,0.00013698,3]
[330658252,1719695438968,-898.38,0.00013698,3]
[330658253,1719695438977,-1289.95,0.00013698,3]
[330658254,1719695438986,-500.0,0.00013698,3]
[330658255,1719695438996,-500.0,0.00013698,3]
[330658256,1719695439005,-500.0,0.00013698,3]
[330658257,1719695439015,-500.0,0.00013698,3]
[330658258,1719695439025,-728.36,0.00013698,3]
[330658259,1719695439035,-500.0,0.00013698,3]
[330658260,1719695439045,-639.53,0.00013698,3]
[330658261,1719695439055,-500.0,0.00013698,3]
[330658262,1719695439066,-500.0,0.00013698,3]
[330658263,1719695439076,-589.43,0.00013698,3]
[330658264,1719695439087,-1008.3,0.00013698,3]
[330658265,1719695439097,-753.33,0.00013698,3]
[330658266,1719695439109,-546.67734376,0.00013698,3]
[330658267,1719695439122,-573.79,0.00013698,3]
[330658268,1719695439132,-500.0,0.00013698,3]
[330658269,1719695439142,-500.0,0.00013698,3]
[330658270,1719695439152,-500.0,0.00013698,3]
[330658271,1719695439162,-1130.34,0.00013698,3]
[330658272,1719695439172,-500.0,0.00013698,3]
[330658273,1719695439182,-500.0,0.00013698,3]
[330658274,1719695439192,-772.83,0.00013698,3]
[330658275,1719695439201,-1129.59,0.00013698,3]
[330658276,1719695439211,-500.0,0.00013698,3]
[330658277,1719695439220,-500.0,0.00013698,3]
[330658278,1719695439229,-673.53,0.00013698,3]
[330658279,1719695439239,-500.0,0.00013698,3]
[330658280,1719695439249,-500.0,0.00013698,3]
[330658281,1719695439259,-1059.69,0.00013698,3]
[330658282,1719695439268,-500.0,0.00013698,3]
[330658283,1719695439278,-1046.5,0.00013698,3]
[330658284,1719695439288,-500.0,0.00013698,3]
[330658285,1719695439297,-518.13,0.00013698,3]
[330658286,1719695439307,-500.0,0.00013698,3]
[330658287,1719695439319,-500.0,0.00013698,3]
[330658288,1719695439329,-740.83,0.00013698,3]
[330658289,1719695439338,-500.0,0.00013698,2]
[330658290,1719695439348,-500.0,0.00013698,3]
[330658291,1719695439358,-726.96,0.00013698,3]
[330658292,1719695439374,-500.0,0.00013698,3]
[330658293,1719695439383,-500.0,0.00013698,3]
[330658294,1719695439393,-500.0,0.00013698,3]
[330658295,1719695439405,-500.0,0.00013698,3]
[330658296,1719695439414,-3346.36,0.00013698,3]
[330658297,1719695439424,-500.0,0.00013698,3]
[330658298,1719695439434,-607.15,0.00013698,3]
[330658299,1719695439443,-500.0,0.00013698,3]
[330658300,1719695439453,-861.03,0.00013698,3]
[330658301,1719695439463,-500.0,0.00013698,3]
[330658302,1719695439472,-343.39160055,0.00013698,3]
[330658303,1719695439482,-511.33,0.00013698,3]
[330658304,1719695439491,-500.0,0.00013698,3]
[330658305,1719695439502,-500.0,0.00013698,3]
[330658306,1719695439512,-725.81,0.00013698,3]
[330658307,1719695439521,-416.31800012,0.00013698,2]
[330658308,1719695439530,-1249.39,0.00013698,3]
[330658309,1719695439540,-734.33,0.00013698,3]
[330658310,1719695439552,-500.0,0.00013698,3]
[330658311,1719695439562,-1449.39,0.00013698,3]
[330658312,1719695439572,-936.91,0.00013698,3]
[330658313,1719695439583,-2443.62,0.00013698,3]
[330658314,1719695439594,-1368.38,0.00013698,3]
[330658315,1719695439604,-640.0,0.00013698,3]
[330658316,1719695439613,-500.0,0.00013698,3]
[330658317,1719695439626,-948.65,0.00013698,3]
[330658318,1719695439635,-500.0,0.00013698,3]
[330658319,1719695439645,-500.0,0.00013698,3]
[330658320,1719695439654,-683.27,0.00013698,3]
[330658321,1719695439664,-732.81,0.00013698,3]
[330658322,1719695439674,-1793.22,0.00013698,3]
[330658323,1719695439684,-500.0,0.00013698,3]
[330658324,1719695439693,-500.0,0.00013698,3]
[330658325,1719695439703,-642.42,0.00013698,3]
[330658326,1719695439713,-1594.22,0.00013698,3]
[330658327,1719695439723,-908.99,0.00013698,3]
[330658328,1719695439732,-500.0,0.00013698,3]
[330658329,1719695439742,-500.0,0.00013698,3]
[330658330,1719695439752,-500.0,0.00013698,3]
[330658331,1719695439761,-500.0,0.00013698,3]
[330658332,1719695439771,-1070.98,0.00013698,3]
[330658333,1719695439780,-512.5,0.00013698,3]
[330658334,1719695439790,-500.0,0.00013698,3]
[330658335,1719695440095,-1213.13,0.00013698,3]
[330658336,1719695440113,-1191.56,0.00013698,3]
[330658339,1719695440125,-500.0,0.00013698,3]
[330658341,1719695440135,-500.0,0.00013698,3]
[330658342,1719695440144,-268.09499551,0.00013698,3]
[330658347,1719695440181,-231.90500449,0.00013698,3]
[330658349,1719695440190,-509.6,0.00013698,3]
[330658351,1719695440199,-1194.5358758,0.00013698,3]
[330658363,1719695441133,-213.4041242,0.00013698,3]
[330658364,1719695441142,-500.0,0.00013698,3]
[330658365,1719695441151,-472.09181713,0.00013698,3]
[330658378,1719695443167,-699.86809748,0.00013698,3]
[330658379,1719695443179,-994.94008539,0.00013698,3]
[330658380,1719695443188,-2500.0,0.00013698,3]
[330658381,1719695443197,-500.0,0.00013698,3]
[330658382,1719695443206,-500.0,0.00013698,3]
[330658383,1719695443215,-730.98,0.00013698,3]
[330658384,1719695443225,-500.0,0.00013698,3]
[330658385,1719695443235,-2257.43,0.00013698,3]
[330658386,1719695443244,-749.77,0.00013698,3]
[330658387,1719695443254,-500.0,0.00013698,3]
[330658388,1719695443264,-500.0,0.00013698,3]
[330658389,1719695443274,-990.78,0.00013698,3]
[330658390,1719695443284,-500.0,0.00013698,3]
[330658391,1719695443293,-500.0,0.00013698,3]
[330658392,1719695443303,-500.0,0.00013698,3]
[330658393,1719695443312,-1646.76,0.00013698,3]
[330658394,1719695443322,-500.0,0.00013698,3]
[330658395,1719695443331,-500.0,0.00013698,3]
[330658396,1719695443341,-500.0,0.00013698,3]
[330658397,1719695443350,-554.51,0.00013698,3]